[Event "*** SCC Grand Prix: Titled Tuesday Blitz"]
[Site "Chess.com"]
[Date "2020.09.08"]
[Round "5"]
[White "BilodeauA"]
[Black "kingnb"]
[Result "1-0"]
[WhiteElo "2856"]
[BlackElo "2608"]
[TimeControl "180+1"]
[EndTime "10:56:37 PDT"]
[Termination "BilodeauA won by resignation"]

1. e4 {[%clk 0:02:59.7]} 1... d5 {[%clk 0:02:58.7]} 2. exd5 {[%clk 0:02:59.8]}
2... Nf6 {[%clk 0:02:57.5]} 3. d4 {[%clk 0:02:59.7]} 3... Nxd5 {[%clk
0:02:56.5]} 4. Nf3 {[%clk 0:02:58.8]} 4... Bf5 {[%clk 0:02:54.2]} 5. Bd3 {[%clk
0:02:49.4]} 5... Bxd3 {[%clk 0:02:50.2]} 6. Qxd3 {[%clk 0:02:50.3]} 6... e6
{[%clk 0:02:50.5]} 7. c4 {[%clk 0:02:50.6]} 7... Nf6 {[%clk 0:02:48.6]} 8. Nc3
{[%clk 0:02:48.8]} 8... Be7 {[%clk 0:02:47.4]} 9. Bg5 {[%clk 0:02:48.9]} 9...
O-O {[%clk 0:02:46.1]} 10. O-O-O {[%clk 0:02:48.7]} 10... Nbd7 {[%clk
0:02:41.5]} 11. h4 {[%clk 0:02:46.6]} 11... c6 {[%clk 0:02:39.7]} 12. Ne5 {[%clk
0:02:42.6]} 12... Re8 {[%clk 0:02:31.2]} 13. Qg3 {[%clk 0:02:20.8]} 13... Qa5
{[%clk 0:02:26.6]} 14. h5 {[%clk 0:02:15.4]} 14... Rad8 {[%clk 0:02:10.8]} 15.
Bh6 {[%clk 0:01:52.5]} 15... Bf8 {[%clk 0:01:29.3]} 16. Bxg7 {[%clk 0:01:50.8]}
16... Bxg7 {[%clk 0:01:25]} 17. h6 {[%clk 0:01:51.2]} 17... Kf8 {[%clk
0:01:24.7]} 18. Qxg7+ {[%clk 0:01:42.2]} 18... Ke7 {[%clk 0:01:23.8]} 19. Qxf7+
{[%clk 0:01:32]} 19... Kd6 {[%clk 0:01:22]} 20. Nxd7 {[%clk 0:01:30.5]} 20...
Nxd7 {[%clk 0:01:20.3]} 21. Rh5 {[%clk 0:01:31]} 21... Qb4 {[%clk 0:01:17.2]}
22. Qf4+ {[%clk 0:01:30.8]} 22... Ke7 {[%clk 0:01:15]} 23. Rg5 {[%clk
0:01:28.1]} 23... Rg8 {[%clk 0:01:11.2]} 24. d5 {[%clk 0:01:19.1]} 24... cxd5
{[%clk 0:00:53.1]} 25. Nxd5+ {[%clk 0:01:10.7]} 25... exd5 {[%clk 0:00:53]} 26.
Rgxd5 {[%clk 0:00:39.8]} 26... Rg6 {[%clk 0:00:28.2]} 27. a3 {[%clk 0:00:35.3]}
27... Qb6 {[%clk 0:00:22.3]} 28. Re1+ {[%clk 0:00:35.2]} 28... Re6 {[%clk
0:00:20.4]} 29. Qg5+ {[%clk 0:00:34.8]} 29... Ke8 {[%clk 0:00:19.4]} 30. Qg8+
{[%clk 0:00:27.4]} 30... Ke7 {[%clk 0:00:19.6]} 31. Qg7+ {[%clk 0:00:24.8]}
31... Ke8 {[%clk 0:00:20.1]} 32. Qh8+ {[%clk 0:00:22.7]} 32... Ke7 {[%clk
0:00:17.6]} 33. Qxh7+ {[%clk 0:00:22.7]} 33... Ke8 {[%clk 0:00:18]} 34. Qg8+
{[%clk 0:00:21.9]} 34... Ke7 {[%clk 0:00:18.3]} 35. Qg7+ {[%clk 0:00:21.9]}
35... Ke8 {[%clk 0:00:18.7]} 36. Rxe6+ {[%clk 0:00:15.2]} 36... Qxe6 {[%clk
0:00:19.6]} 37. h7 {[%clk 0:00:11.6]} 37... Qe1+ {[%clk 0:00:19.1]} 38. Rd1
{[%clk 0:00:12]} 38... Qxd1+ {[%clk 0:00:17.1]} 39. Kxd1 {[%clk 0:00:12.9]}
39... Nf6+ {[%clk 0:00:17.7]} 40. Kc2 {[%clk 0:00:12.2]} 40... Nxh7 {[%clk
0:00:18.6]} 41. Qxh7 {[%clk 0:00:12.8]} 1-0

[Event "*** SCC Grand Prix: Titled Tuesday Blitz"]
[Site "Chess.com"]
[Date "2020.09.08"]
[Round "5"]
[White "woodpusher52"]
[Black "NotFischer"]
[Result "0-1"]
[WhiteElo "2459"]
[BlackElo "2250"]
[TimeControl "180+1"]
[EndTime "10:56:38 PDT"]
[Termination "NotFischer won on time"]

1. e4 {[%clk 0:02:54.4]} 1... d5 {[%clk 0:02:59.4]} 2. d3 {[%clk 0:02:52.7]}
2... dxe4 {[%clk 0:02:59]} 3. dxe4 {[%clk 0:02:53.6]} 3... Qxd1+ {[%clk
0:02:59.2]} 4. Kxd1 {[%clk 0:02:54.5]} 4... Nf6 {[%clk 0:02:58.9]} 5. f3 {[%clk
0:02:54.4]} 5... e5 {[%clk 0:02:58.8]} 6. Be3 {[%clk 0:02:53.9]} 6... Be6 {[%clk
0:02:58.3]} 7. c3 {[%clk 0:02:52.4]} 7... Nbd7 {[%clk 0:02:58.2]} 8. Kc2 {[%clk
0:02:52.3]} 8... Bc5 {[%clk 0:02:57.4]} 9. Bxc5 {[%clk 0:02:52.8]} 9... Nxc5
{[%clk 0:02:58.3]} 10. Nd2 {[%clk 0:02:52.7]} 10... O-O-O {[%clk 0:02:57.7]} 11.
Nc4 {[%clk 0:02:48.2]} 11... Bxc4 {[%clk 0:02:41.2]} 12. Bxc4 {[%clk 0:02:49.1]}
12... Rhf8 {[%clk 0:02:35.1]} 13. Ne2 {[%clk 0:02:47.6]} 13... c6 {[%clk
0:02:34.9]} 14. b4 {[%clk 0:02:46.8]} 14... Ncd7 {[%clk 0:02:32.9]} 15. a4
{[%clk 0:02:45.6]} 15... Kc7 {[%clk 0:02:32.5]} 16. a5 {[%clk 0:02:45.6]} 16...
Ne8 {[%clk 0:02:26.6]} 17. Ng3 {[%clk 0:02:39]} 17... Nd6 {[%clk 0:02:25.8]} 18.
Bb3 {[%clk 0:02:39.6]} 18... g6 {[%clk 0:02:25.9]} 19. Rad1 {[%clk 0:02:35.9]}
19... f5 {[%clk 0:02:25.7]} 20. Rhe1 {[%clk 0:02:30.4]} 20... f4 {[%clk
0:02:22.4]} 21. Nf1 {[%clk 0:02:25.6]} 21... Nf6 {[%clk 0:02:22.3]} 22. h3
{[%clk 0:02:22.6]} 22... g5 {[%clk 0:02:22.4]} 23. Rd2 {[%clk 0:02:15.5]} 23...
h5 {[%clk 0:02:22]} 24. Red1 {[%clk 0:02:13.9]} 24... g4 {[%clk 0:02:22.3]} 25.
hxg4 {[%clk 0:02:14.8]} 25... hxg4 {[%clk 0:02:23.2]} 26. Rd3 {[%clk 0:01:47.2]}
26... Rh8 {[%clk 0:02:21.6]} 27. Nd2 {[%clk 0:01:46.2]} 27... Rh2 {[%clk
0:02:20.5]} 28. Rg1 {[%clk 0:01:37.2]} 28... Rdh8 {[%clk 0:01:54.9]} 29. c4
{[%clk 0:01:27.2]} 29... Nf7 {[%clk 0:01:41.9]} 30. Kc3 {[%clk 0:01:17.8]} 30...
Ng5 {[%clk 0:01:41.8]} 31. c5 {[%clk 0:01:15.8]} 31... Rh1 {[%clk 0:01:18.5]}
32. Rxh1 {[%clk 0:01:12.3]} 32... Rxh1 {[%clk 0:01:19.4]} 33. Nc4 {[%clk
0:01:13.2]} 33... g3 {[%clk 0:01:02.4]} 34. Nxe5 {[%clk 0:01:07.7]} 34... Rg1
{[%clk 0:00:54.5]} 35. Rd6 {[%clk 0:00:47.8]} 35... Nfxe4+ {[%clk 0:00:51.7]}
36. fxe4 {[%clk 0:00:45.4]} 36... Nxe4+ {[%clk 0:00:52.6]} 37. Kd4 {[%clk
0:00:37.7]} 37... Nxd6 {[%clk 0:00:53.5]} 38. cxd6+ {[%clk 0:00:38.5]} 38...
Kxd6 {[%clk 0:00:53.3]} 39. Nc4+ {[%clk 0:00:18.9]} 39... Kc7 {[%clk 0:00:53.2]}
40. Ke4 {[%clk 0:00:17.2]} 40... Rxg2 {[%clk 0:00:34.7]} 41. Kxf4 {[%clk
0:00:16.2]} 41... Rg1 {[%clk 0:00:29.4]} 42. Kf3 {[%clk 0:00:02.5]} 42... g2
{[%clk 0:00:29.4]} 0-1

[Event "*** SCC Grand Prix: Titled Tuesday Blitz"]
[Site "Chess.com"]
[Date "2020.09.08"]
[Round "5"]
[White "belisarius64"]
[Black "LaPorfia"]
[Result "1-0"]
[WhiteElo "2678"]
[BlackElo "2278"]
[TimeControl "180+1"]
[EndTime "10:56:39 PDT"]
[Termination "belisarius64 won by resignation"]

1. e4 {[%clk 0:03:00.9]} 1... d5 {[%clk 0:02:59.7]} 2. exd5 {[%clk 0:02:59.9]}
2... Nf6 {[%clk 0:02:59.9]} 3. d4 {[%clk 0:02:59.9]} 3... Bg4 {[%clk 0:02:59.7]}
4. f3 {[%clk 0:02:58]} 4... Bf5 {[%clk 0:02:59.1]} 5. c4 {[%clk 0:02:57.2]} 5...
e6 {[%clk 0:02:57.6]} 6. g4 {[%clk 0:02:51.9]} 6... Bxb1 {[%clk 0:02:10]} 7.
Rxb1 {[%clk 0:02:52.8]} 7... exd5 {[%clk 0:02:04]} 8. c5 {[%clk 0:02:44.5]} 8...
Be7 {[%clk 0:01:51]} 9. Bd3 {[%clk 0:02:43.3]} 9... O-O {[%clk 0:01:38.5]} 10.
Ne2 {[%clk 0:02:43.8]} 10... Nfd7 {[%clk 0:01:30.9]} 11. O-O {[%clk 0:02:41.7]}
11... Bf6 {[%clk 0:01:22.7]} 12. Be3 {[%clk 0:02:32.3]} 12... Nc6 {[%clk
0:01:20.4]} 13. Qd2 {[%clk 0:02:24]} 13... g6 {[%clk 0:01:16.7]} 14. b4 {[%clk
0:02:22.6]} 14... a5 {[%clk 0:01:11.2]} 15. a3 {[%clk 0:02:13.8]} 15... axb4
{[%clk 0:01:06.9]} 16. axb4 {[%clk 0:02:14.7]} 16... Re8 {[%clk 0:01:07.1]} 17.
b5 {[%clk 0:02:11.1]} 17... Na5 {[%clk 0:00:56.2]} 18. Rfc1 {[%clk 0:01:57.9]}
18... b6 {[%clk 0:00:51.8]} 19. Nf4 {[%clk 0:01:45.3]} 19... bxc5 {[%clk
0:00:43.4]} 20. Nxd5 {[%clk 0:01:27.9]} 20... c4 {[%clk 0:00:27]} 21. Bxc4
{[%clk 0:01:13.1]} 21... Nb6 {[%clk 0:00:18.8]} 22. Nxf6+ {[%clk 0:01:01.8]}
22... Qxf6 {[%clk 0:00:17.8]} 23. Ba2 {[%clk 0:01:02.3]} 23... Qe7 {[%clk
0:00:10.2]} 24. Bg5 {[%clk 0:00:56.5]} 24... Qe2 {[%clk 0:00:09.8]} 25. Rc2
{[%clk 0:00:46.3]} 25... Qxf3 {[%clk 0:00:07.1]} 26. Rf1 {[%clk 0:00:33.9]}
26... Qxg4+ {[%clk 0:00:06.9]} 27. Qg2 {[%clk 0:00:34.4]} 27... Qxd4+ {[%clk
0:00:06.4]} 28. Kh1 {[%clk 0:00:34.7]} 28... Nac4 {[%clk 0:00:04.9]} 29. Bf6
{[%clk 0:00:33.9]} 29... Qe4 {[%clk 0:00:03.9]} 30. Qxe4 {[%clk 0:00:29.4]}
30... Rxe4 {[%clk 0:00:04.8]} 31. Rfc1 {[%clk 0:00:24.3]} 31... Rae8 {[%clk
0:00:02.9]} 32. Bxc4 {[%clk 0:00:22.1]} 32... Nxc4 {[%clk 0:00:02.8]} 33. Rxc4
{[%clk 0:00:22.2]} 33... Re1+ {[%clk 0:00:03.2]} 34. Rxe1 {[%clk 0:00:21.9]}
34... Rxe1+ {[%clk 0:00:03.7]} 35. Kg2 {[%clk 0:00:22.6]} 35... Re6 {[%clk
0:00:03.7]} 36. Bh4 {[%clk 0:00:20.2]} 36... g5 {[%clk 0:00:02.8]} 37. Bg3
{[%clk 0:00:20.2]} 37... h5 {[%clk 0:00:02.2]} 38. Bxc7 {[%clk 0:00:19.9]} 38...
Kg7 {[%clk 0:00:02.5]} 39. b6 {[%clk 0:00:20.4]} 39... Kg6 {[%clk 0:00:02.8]}
40. b7 {[%clk 0:00:20.8]} 40... Re2+ {[%clk 0:00:03.3]} 41. Kf3 {[%clk
0:00:21.2]} 41... Re1 {[%clk 0:00:02.6]} 42. b8=Q {[%clk 0:00:20.8]} 1-0

[Event "*** SCC Grand Prix: Titled Tuesday Blitz"]
[Site "Chess.com"]
[Date "2020.09.08"]
[Round "5"]
[White "NMZanette"]
[Black "aloe_normansen"]
[Result "0-1"]
[WhiteElo "2187"]
[BlackElo "2355"]
[TimeControl "180+1"]
[EndTime "10:56:39 PDT"]
[Termination "aloe_normansen won by checkmate"]

1. e4 {[%clk 0:03:00.9]} 1... c5 {[%clk 0:02:59.8]} 2. Nc3 {[%clk 0:03:01]} 2...
d6 {[%clk 0:02:59.9]} 3. f4 {[%clk 0:03:00.8]} 3... Nf6 {[%clk 0:02:57.2]} 4.
Nf3 {[%clk 0:02:59.2]} 4... e6 {[%clk 0:02:52.9]} 5. d4 {[%clk 0:02:47.7]} 5...
cxd4 {[%clk 0:02:52]} 6. Nxd4 {[%clk 0:02:48.6]} 6... Be7 {[%clk 0:02:51.6]} 7.
Be2 {[%clk 0:02:47.5]} 7... a6 {[%clk 0:02:51.5]} 8. O-O {[%clk 0:02:47.5]} 8...
Qc7 {[%clk 0:02:50.6]} 9. Kh1 {[%clk 0:02:46.4]} 9... O-O {[%clk 0:02:46]} 10.
a4 {[%clk 0:02:45.5]} 10... Nc6 {[%clk 0:02:45.3]} 11. Be3 {[%clk 0:02:44.1]}
11... Nxd4 {[%clk 0:02:42.1]} 12. Bxd4 {[%clk 0:02:42.5]} 12... e5 {[%clk
0:02:42.2]} 13. Be3 {[%clk 0:02:38.8]} 13... exf4 {[%clk 0:02:41.8]} 14. Bxf4
{[%clk 0:02:38.4]} 14... Be6 {[%clk 0:02:41.6]} 15. Qd2 {[%clk 0:02:07.5]} 15...
Nd7 {[%clk 0:02:38.3]} 16. Nd5 {[%clk 0:02:04.3]} 16... Bxd5 {[%clk 0:02:34.4]}
17. exd5 {[%clk 0:02:04.8]} 17... Bf6 {[%clk 0:02:33.1]} 18. c3 {[%clk
0:02:01.9]} 18... Be5 {[%clk 0:02:26.4]} 19. Bd3 {[%clk 0:01:57.9]} 19... Bxf4
{[%clk 0:02:18.8]} 20. Rxf4 {[%clk 0:01:57.4]} 20... Ne5 {[%clk 0:02:16.4]} 21.
Rh4 {[%clk 0:01:54.7]} 21... g6 {[%clk 0:02:10.2]} 22. Bf1 {[%clk 0:01:29.3]}
22... f5 {[%clk 0:02:06.5]} 23. Re1 {[%clk 0:01:26.1]} 23... Rae8 {[%clk
0:02:05.1]} 24. Rd1 {[%clk 0:01:14.5]} 24... Qg7 {[%clk 0:01:57.4]} 25. Rd4
{[%clk 0:01:07]} 25... Ng4 {[%clk 0:01:47]} 26. h3 {[%clk 0:01:00.4]} 26... Ne5
{[%clk 0:01:41.5]} 27. c4 {[%clk 0:00:56.4]} 27... Nd7 {[%clk 0:01:20.1]} 28. b4
{[%clk 0:00:52.4]} 28... a5 {[%clk 0:01:09.7]} 29. Rd3 {[%clk 0:00:27.5]} 29...
axb4 {[%clk 0:01:07.6]} 30. Qxb4 {[%clk 0:00:26.4]} 30... Nc5 {[%clk 0:01:07.6]}
31. R3d2 {[%clk 0:00:23.6]} 31... Ne4 {[%clk 0:01:02.2]} 32. Rc2 {[%clk
0:00:21.8]} 32... Nc5 {[%clk 0:00:56.7]} 33. a5 {[%clk 0:00:20.1]} 33... Qe5
{[%clk 0:00:54.2]} 34. Re2 {[%clk 0:00:18]} 34... Qg3 {[%clk 0:00:51.1]} 35.
Rxe8 {[%clk 0:00:17.3]} 35... Rxe8 {[%clk 0:00:52]} 36. Qb5 {[%clk 0:00:17.7]}
36... Re1 {[%clk 0:00:43.3]} 37. Qb1 {[%clk 0:00:15.9]} 37... Re5 {[%clk
0:00:38.4]} 38. Qb6 {[%clk 0:00:14.1]} 38... Ne4 {[%clk 0:00:36.3]} 39. Qd8+
{[%clk 0:00:11.4]} 39... Kg7 {[%clk 0:00:36.5]} 40. Qd7+ {[%clk 0:00:10.3]}
40... Kh6 {[%clk 0:00:35.7]} 41. Rb1 {[%clk 0:00:08.3]} 41... Nf2+ {[%clk
0:00:35.3]} 42. Kg1 {[%clk 0:00:08.3]} 42... Nxh3+ {[%clk 0:00:36.2]} 43. Kh1
{[%clk 0:00:08.6]} 43... Nf2+ {[%clk 0:00:36.4]} 44. Kg1 {[%clk 0:00:08.3]}
44... Ng4 {[%clk 0:00:36.4]} 45. Qd8 {[%clk 0:00:08]} 45... Qh2# {[%clk
0:00:35.5]} 0-1

[Event "*** SCC Grand Prix: Titled Tuesday Blitz"]
[Site "Chess.com"]
[Date "2020.09.08"]
[Round "5"]
[White "Klavdia_Nik"]
[Black "freshfoodcompany"]
[Result "0-1"]
[WhiteElo "2123"]
[BlackElo "2336"]
[TimeControl "180+1"]
[EndTime "10:56:39 PDT"]
[Termination "freshfoodcompany won on time"]

1. Nf3 {[%clk 0:03:00.9]} 1... d5 {[%clk 0:02:59.3]} 2. c4 {[%clk 0:03:00.1]}
2... e6 {[%clk 0:02:57.1]} 3. b3 {[%clk 0:02:58.7]} 3... Nf6 {[%clk 0:02:56.3]}
4. Bb2 {[%clk 0:02:58.7]} 4... Be7 {[%clk 0:02:55.7]} 5. g3 {[%clk 0:02:57.7]}
5... O-O {[%clk 0:02:54.3]} 6. Bg2 {[%clk 0:02:57.9]} 6... c5 {[%clk 0:02:54.1]}
7. O-O {[%clk 0:02:57.4]} 7... Nc6 {[%clk 0:02:53.5]} 8. d3 {[%clk 0:02:57.4]}
8... a6 {[%clk 0:02:49.2]} 9. Nbd2 {[%clk 0:02:56.2]} 9... b5 {[%clk 0:02:47.4]}
10. cxd5 {[%clk 0:02:52.1]} 10... exd5 {[%clk 0:02:45.7]} 11. Rc1 {[%clk
0:02:39.4]} 11... Bb7 {[%clk 0:02:42.7]} 12. Bxf6 {[%clk 0:02:36.3]} 12... Bxf6
{[%clk 0:02:26.4]} 13. Rxc5 {[%clk 0:02:33.9]} 13... Qd6 {[%clk 0:02:19.4]} 14.
Rc1 {[%clk 0:02:29.1]} 14... Rac8 {[%clk 0:02:13.3]} 15. Nb1 {[%clk 0:01:58.4]}
15... Nb4 {[%clk 0:02:01.2]} 16. Rxc8 {[%clk 0:01:40.9]} 16... Rxc8 {[%clk
0:01:58.4]} 17. a3 {[%clk 0:01:35.4]} 17... Nc2 {[%clk 0:01:52.7]} 18. d4 {[%clk
0:00:48.1]} 18... Nxa3 {[%clk 0:01:47.8]} 19. Qd3 {[%clk 0:00:20.3]} 19... Nxb1
{[%clk 0:01:42.9]} 20. Rxb1 {[%clk 0:00:19.1]} 20... Qc7 {[%clk 0:01:35.1]} 21.
h4 {[%clk 0:00:14.5]} 21... h6 {[%clk 0:01:33]} 22. e3 {[%clk 0:00:13.2]} 22...
Qb6 {[%clk 0:01:16.9]} 23. Bh3 {[%clk 0:00:12.5]} 23... Rc6 {[%clk 0:01:09.5]}
24. Ne5 {[%clk 0:00:11.3]} 24... Bxe5 {[%clk 0:01:06.2]} 25. dxe5 {[%clk
0:00:11.4]} 25... Qc7 {[%clk 0:01:02.8]} 26. f4 {[%clk 0:00:10]} 26... Rc3
{[%clk 0:00:56.5]} 27. Qd4 {[%clk 0:00:09.1]} 27... Rc1+ {[%clk 0:00:50.3]} 28.
Rxc1 {[%clk 0:00:08.5]} 28... Qxc1+ {[%clk 0:00:49.7]} 29. Kh2 {[%clk
0:00:09.2]} 29... Qc2+ {[%clk 0:00:47.3]} 30. Bg2 {[%clk 0:00:08.3]} 30... Qc6
{[%clk 0:00:41.4]} 31. g4 {[%clk 0:00:06.1]} 31... a5 {[%clk 0:00:37]} 32. Kg3
{[%clk 0:00:05.5]} 32... a4 {[%clk 0:00:35.8]} 33. bxa4 {[%clk 0:00:04.8]} 33...
bxa4 {[%clk 0:00:35.7]} 34. Qb4 {[%clk 0:00:03.8]} 34... Qa6 {[%clk 0:00:28.1]}
35. Qe7 {[%clk 0:00:02]} 35... a3 {[%clk 0:00:22.8]} 36. Qe8+ {[%clk 0:00:01.6]}
36... Kh7 {[%clk 0:00:21.8]} 37. Qxf7 {[%clk 0:00:01.8]} 37... a2 {[%clk
0:00:19.9]} 38. Qf5+ {[%clk 0:00:02.2]} 38... Qg6 {[%clk 0:00:18.2]} 39. Qxg6+
{[%clk 0:00:02.2]} 39... Kxg6 {[%clk 0:00:18.1]} 0-1

[Event "*** SCC Grand Prix: Titled Tuesday Blitz"]
[Site "Chess.com"]
[Date "2020.09.08"]
[Round "5"]
[White "exoticprincess"]
[Black "Hikaru"]
[Result "1-0"]
[WhiteElo "2893"]
[BlackElo "3194"]
[TimeControl "180+1"]
[EndTime "10:56:43 PDT"]
[Termination "exoticprincess won by resignation"]

1. d4 {[%clk 0:03:00.9]} 1... Nf6 {[%clk 0:02:51.9]} 2. c4 {[%clk 0:03:00.5]}
2... e6 {[%clk 0:02:45.1]} 3. Nc3 {[%clk 0:02:59.5]} 3... Bb4 {[%clk 0:02:44.5]}
4. e3 {[%clk 0:02:59.1]} 4... O-O {[%clk 0:02:39.9]} 5. Ne2 {[%clk 0:02:59.2]}
5... c6 {[%clk 0:02:38]} 6. a3 {[%clk 0:02:58.3]} 6... Ba5 {[%clk 0:02:37.7]} 7.
b4 {[%clk 0:02:58.5]} 7... Bc7 {[%clk 0:02:37.2]} 8. e4 {[%clk 0:02:58.9]} 8...
d6 {[%clk 0:02:36.1]} 9. Ng3 {[%clk 0:02:51.2]} 9... e5 {[%clk 0:02:36.5]} 10.
d5 {[%clk 0:02:46.6]} 10... a5 {[%clk 0:02:37.1]} 11. Rb1 {[%clk 0:02:41.5]}
11... axb4 {[%clk 0:02:37.2]} 12. axb4 {[%clk 0:02:41.5]} 12... Bb6 {[%clk
0:02:34.6]} 13. Be2 {[%clk 0:02:31.2]} 13... Bd4 {[%clk 0:02:34.3]} 14. Bd2
{[%clk 0:02:29.6]} 14... g6 {[%clk 0:02:32.7]} 15. O-O {[%clk 0:02:25.7]} 15...
h5 {[%clk 0:02:32.8]} 16. Bf3 {[%clk 0:02:07.7]} 16... cxd5 {[%clk 0:02:06.6]}
17. exd5 {[%clk 0:01:59.4]} 17... Nh7 {[%clk 0:01:54.4]} 18. Nb5 {[%clk
0:01:56.8]} 18... Bb6 {[%clk 0:01:53.1]} 19. Ne4 {[%clk 0:01:55.4]} 19... Bc7
{[%clk 0:01:51.8]} 20. Nxc7 {[%clk 0:01:52.3]} 20... Qxc7 {[%clk 0:01:51.8]} 21.
c5 {[%clk 0:01:52.8]} 21... dxc5 {[%clk 0:01:47.4]} 22. bxc5 {[%clk 0:01:52.6]}
22... f5 {[%clk 0:01:39.9]} 23. Nd6 {[%clk 0:01:45.7]} 23... e4 {[%clk
0:01:29.2]} 24. Be2 {[%clk 0:01:43.3]} 24... Nd7 {[%clk 0:01:29.6]} 25. Nb5
{[%clk 0:01:33.6]} 25... Qxc5 {[%clk 0:01:21.5]} 26. Bb4 {[%clk 0:01:32.5]}
26... Qb6 {[%clk 0:01:22.2]} 27. Bxf8 {[%clk 0:01:32.2]} 27... Ndxf8 {[%clk
0:01:17.5]} 28. d6 {[%clk 0:01:30.5]} 28... Qc5 {[%clk 0:01:17.9]} 29. Qd4
{[%clk 0:01:19.1]} 29... Qxd4 {[%clk 0:01:13.1]} 30. Nxd4 {[%clk 0:01:20]} 30...
Nf6 {[%clk 0:01:13.8]} 31. Rfc1 {[%clk 0:01:18.1]} 31... Ne8 {[%clk 0:01:13.6]}
32. Nb5 {[%clk 0:01:08.4]} 32... Rb8 {[%clk 0:01:08.1]} 33. h4 {[%clk
0:01:07.2]} 33... Bd7 {[%clk 0:01:07.7]} 34. Rd1 {[%clk 0:01:02.3]} 34... Rc8
{[%clk 0:00:52.4]} 35. Na7 {[%clk 0:00:56.5]} 35... Rb8 {[%clk 0:00:25.9]} 36.
Bb5 {[%clk 0:00:53.3]} 36... Kf7 {[%clk 0:00:23.8]} 37. Nc6 {[%clk 0:00:52.1]}
37... Bxc6 {[%clk 0:00:19.7]} 38. Bxc6 {[%clk 0:00:51.7]} 38... Nf6 {[%clk
0:00:20.2]} 39. Rxb7+ {[%clk 0:00:48.2]} 39... Rxb7 {[%clk 0:00:20.6]} 40. Bxb7
{[%clk 0:00:49.1]} 40... Ke6 {[%clk 0:00:20.5]} 41. Ba6 {[%clk 0:00:44.3]} 41...
N6d7 {[%clk 0:00:15.3]} 42. Bc4+ {[%clk 0:00:42.8]} 42... Kf6 {[%clk 0:00:15.8]}
43. g3 {[%clk 0:00:36.8]} 43... Ke5 {[%clk 0:00:15.5]} 44. Kf1 {[%clk
0:00:34.6]} 44... Ne6 {[%clk 0:00:15.1]} 45. Bxe6 {[%clk 0:00:30.9]} 45... Kxe6
{[%clk 0:00:15.5]} 46. Ke2 {[%clk 0:00:31.8]} 46... Ne5 {[%clk 0:00:12.6]} 47.
Ke3 {[%clk 0:00:29.2]} 47... Nd3 {[%clk 0:00:10.4]} 48. f3 {[%clk 0:00:27.9]}
48... Nb2 {[%clk 0:00:08.8]} 49. Rd4 {[%clk 0:00:26.1]} 1-0

[Event "*** SCC Grand Prix: Titled Tuesday Blitz"]
[Site "Chess.com"]
[Date "2020.09.08"]
[Round "5"]
[White "serhanberat_ozdemir"]
[Black "mmaks007"]
[Result "0-1"]
[WhiteElo "2460"]
[BlackElo "2262"]
[TimeControl "180+1"]
[EndTime "10:56:45 PDT"]
[Termination "mmaks007 won on time"]

1. e4 {[%clk 0:03:00.9]} 1... g6 {[%clk 0:02:56.5]} 2. d4 {[%clk 0:02:59.3]}
2... Bg7 {[%clk 0:02:56.4]} 3. Nc3 {[%clk 0:02:59.5]} 3... d6 {[%clk 0:02:55.9]}
4. Nf3 {[%clk 0:02:57.1]} 4... a6 {[%clk 0:02:55.6]} 5. Be3 {[%clk 0:02:46.6]}
5... b5 {[%clk 0:02:54.5]} 6. Bd3 {[%clk 0:02:44.3]} 6... Bb7 {[%clk 0:02:50]}
7. a4 {[%clk 0:02:44.3]} 7... b4 {[%clk 0:02:48.6]} 8. Ne2 {[%clk 0:02:44.6]}
8... Nf6 {[%clk 0:02:45.2]} 9. Ng3 {[%clk 0:02:45.1]} 9... Ng4 {[%clk
0:02:40.1]} 10. Bg5 {[%clk 0:02:40.3]} 10... h6 {[%clk 0:02:36.4]} 11. Bh4
{[%clk 0:02:40.7]} 11... Nf6 {[%clk 0:02:28.4]} 12. O-O {[%clk 0:02:26.4]} 12...
g5 {[%clk 0:02:21.3]} 13. Nf5 {[%clk 0:01:27.2]} 13... Bf8 {[%clk 0:01:46.1]}
14. Bg3 {[%clk 0:01:26.8]} 14... e6 {[%clk 0:01:42.8]} 15. Ne3 {[%clk 0:01:01]}
15... Nxe4 {[%clk 0:01:39.1]} 16. Re1 {[%clk 0:00:55.7]} 16... Nxg3 {[%clk
0:01:37.3]} 17. hxg3 {[%clk 0:00:56.6]} 17... Bg7 {[%clk 0:01:37.3]} 18. c3
{[%clk 0:00:52.9]} 18... bxc3 {[%clk 0:01:35.1]} 19. bxc3 {[%clk 0:00:53.8]}
19... O-O {[%clk 0:01:35.1]} 20. Rb1 {[%clk 0:00:51.6]} 20... Bc6 {[%clk
0:01:30]} 21. g4 {[%clk 0:00:45.8]} 21... Nd7 {[%clk 0:01:21.8]} 22. Bc2 {[%clk
0:00:31]} 22... Nf6 {[%clk 0:01:17.5]} 23. c4 {[%clk 0:00:20.5]} 23... Be4
{[%clk 0:01:10.8]} 24. Bxe4 {[%clk 0:00:20]} 24... Nxe4 {[%clk 0:01:11.7]} 25.
Qd3 {[%clk 0:00:19]} 25... Nf6 {[%clk 0:01:04.4]} 26. d5 {[%clk 0:00:16.1]}
26... Qd7 {[%clk 0:00:55.5]} 27. Nd4 {[%clk 0:00:04.4]} 27... e5 {[%clk
0:00:25]} 28. Ndf5 {[%clk 0:00:03.1]} 28... e4 {[%clk 0:00:25.2]} 29. Qc2 {[%clk
0:00:03.2]} 29... Nxg4 {[%clk 0:00:16.4]} 30. Nxg7 {[%clk 0:00:02.2]} 30... Nxe3
{[%clk 0:00:16.4]} 31. Rxe3 {[%clk 0:00:02.1]} 31... Kxg7 {[%clk 0:00:16.3]} 32.
Qxe4 {[%clk 0:00:02.8]} 32... Rae8 {[%clk 0:00:14.8]} 33. Qd4+ {[%clk
0:00:03.2]} 33... Kg8 {[%clk 0:00:14.5]} 34. Rh3 {[%clk 0:00:03.1]} 34... Kh7
{[%clk 0:00:11.4]} 35. Qd3+ {[%clk 0:00:02.7]} 35... f5 {[%clk 0:00:10.2]} 36.
Qd2 {[%clk 0:00:02]} 36... Qe7 {[%clk 0:00:09.3]} 0-1